bitfinex/quotes_SOLUSD_20250414
["timestamp","ask_amount","ask_price","bid_price","bid_amount"]
[1744662395911,53.77038695,129.8,129.79,0.0001]
[1744662396089,35.12073809,129.8,129.79,0.0001]
[1744662399732,54.05471009,129.8,129.79,0.0001]
[1744662400033,45.05193323,129.8,129.79,0.0001]
[1744662400325,55.87193323,129.8,129.79,0.0001]
[1744662401420,55.72977166,129.8,129.79,0.0001]
[1744662401623,26.0,129.76,129.73,0.03]
[1744662401799,16.59663809,129.74,129.73,0.03]
[1744662403229,24.30433809,129.74,129.73,0.03]
[1744662406829,7.7047,129.79,129.74,1.5072]
[1744662407026,7.7047,129.79,129.75,16.59663809]
[1744662408723,43.56313809,129.79,129.74,1.5072]
[1744662408933,43.56313809,129.79,129.74,18.10383809]
[1744662409635,26.9665,129.79,129.74,18.10383809]
[1744662409936,24.30133809,129.79,129.74,18.10383809]
[1744662411716,16.59663809,129.78,129.74,1.5072]
[1744662413514,16.59663809,129.77,129.74,1.5072]
[1744662414010,16.59663809,129.78,129.74,18.10383809]
[1744662414510,24.30223809,129.78,129.74,1.5072]
[1744662415538,16.59663809,129.77,129.74,1.5072]
[1744662415829,16.59663809,129.76,129.74,1.5072]
[1744662416025,24.30343809,129.76,129.74,1.5072]
[1744662416231,24.30343809,129.76,129.73,0.03]
[1744662416232,16.59663809,129.75,129.73,0.03]
[1744662416546,16.59663809,129.74,129.73,0.03]
[1744662418033,10.82,129.75,129.73,0.03]
[1744662418229,16.59663809,129.74,129.73,0.03]
[1744662419529,16.59663809,129.75,129.73,0.03]
[1744662419722,7.7065,129.76,129.73,0.03]
[1744662419723,24.30313809,129.76,129.73,0.03]
[1744662420524,7.7065,129.76,129.73,0.03]
[1744662420732,88.5062,129.77,129.73,16.62663809]
[1744662421326,16.59663809,129.75,129.73,0.03]
[1744662421541,16.59663809,129.76,129.73,0.03]
[1744662421831,16.59663809,129.75,129.73,0.03]
[1744662422024,24.30413809,129.75,129.73,0.03]
[1744662422523,16.59663809,129.74,129.73,0.03]
[1744662424227,100.0661,129.77,129.73,0.03]
[1744662424428,16.59663809,129.75,129.73,0.03]
[1744662425222,16.59663809,129.74,129.73,0.03]
[1744662425818,24.30433809,129.74,129.73,0.03]
[1744662426333,35.12433809,129.74,129.73,0.03]
[1744662426532,19.07613357,129.73,129.67,0.03]
[1744662426731,97.39663809,129.72,129.67,0.03]
[1744662427033,80.8,129.72,129.7,16.59663809]
[1744662427238,80.8,129.76,129.72,6.4505]
[1744662427467,80.8,129.76,129.74,16.59663809]
[1744662427612,10.82,129.78,129.75,16.59663809]
[1744662428013,10.82,129.78,129.76,16.59663809]
[1744662428311,7.705,129.79,129.76,16.59663809]
[1744662428839,24.30093809,129.8,129.76,16.59663809]
[1744662429044,24.30093809,129.8,129.75,16.59663809]
[1744662430019,24.30093809,129.8,129.76,16.59663809]
[1744662430346,7.7043,129.8,129.76,16.59663809]
[1744662430916,24.30093809,129.8,129.76,16.59663809]
[1744662431118,24.30093809,129.8,129.76,16.09663809]
[1744662434125,24.30093809,129.8,129.75,16.59663809]
[1744662434324,24.30093809,129.8,129.76,16.59663809]
[1744662435249,24.30093809,129.8,129.74,7.7072]
[1744662435445,24.30093809,129.8,129.75,16.59663809]
[1744662436647,16.59663809,129.79,129.72,6.4505]
[1744662436827,16.59663809,129.76,129.72,30.75573809]
[1744662437029,16.59663809,129.76,129.72,6.4505]
[1744662437232,16.59663809,129.77,129.72,30.75593809]
[1744662437429,16.59663809,129.79,129.74,16.59663809]
[1744662437738,24.30093809,129.8,129.76,16.59663809]
[1744662438132,24.30093809,129.8,129.75,16.59663809]
[1744662438335,16.59663809,129.76,129.72,6.4505]
[1744662438554,16.59663809,129.75,129.72,6.4505]
[1744662438926,16.59663809,129.74,129.72,6.4505]
[1744662439148,16.59663809,129.73,129.68,30.65433809]
[1744662439329,16.59663809,129.71,129.68,7.9683]
[1744662439533,16.59663809,129.69,129.67,0.03]
[1744662439731,16.59663809,129.72,129.67,0.03]
[1744662439732,16.59663809,129.68,129.67,0.03]
[1744662439951,11.0,129.71,129.67,0.03]
[1744662440135,16.59663809,129.68,129.67,0.03]
[1744662440455,16.59663809,129.69,129.67,0.03]
[1744662440863,16.59663809,129.68,129.67,0.03]
[1744662442641,11.0,129.71,129.67,0.03]
[1744662442837,35.30633809,129.71,129.67,0.03]
[1744662443037,16.59663809,129.7,129.67,0.03]
[1744662443235,16.59663809,129.69,129.67,0.03]
[1744662443437,16.59663809,129.7,129.67,0.03]
[1744662444538,24.30783809,129.68,129.67,0.03]
[1744662448161,43.38397166,129.68,129.67,0.03]
[1744662448340,116.47277166,129.67,129.66,0.03]
[1744662448536,97.39663809,129.67,129.66,0.03]
[1744662448741,105.10843809,129.67,129.66,0.03]
[1744662451338,105.10843809,129.67,129.61,2.6743489]
[1744662451339,18.79181043,129.66,129.61,2.6743489]
[1744662451539,16.59663809,129.62,129.61,2.6743489]
[1744662452140,16.59663809,129.64,129.61,2.6743489]
[1744662452348,16.59663809,129.63,129.61,2.6743489]
[1744662452663,7.7142,129.64,129.61,2.6743489]
[1744662452840,16.59663809,129.63,129.61,2.6743489]
[1744662453042,92.28,129.65,129.61,19.27098699]
[1744662453255,92.28,129.65,129.62,16.59663809]
[1744662453454,11.48,129.65,129.61,10.3896489]
[1744662453660,7.7124,129.66,129.62,16.59663809]
[1744662454244,24.30873809,129.67,129.63,16.59663809]
[1744662454448,16.59663809,129.67,129.63,16.59663809]
[1744662454651,88.5109,129.69,129.66,16.59663809]
[1744662455261,88.5109,129.69,129.66,26.62729138]
[1744662455459,80.8,129.69,129.66,26.62729138]
[1744662455669,80.8,129.73,129.68,26.62729138]
[1744662455843,80.8,129.73,129.69,26.62729138]
[1744662456049,107.42729138,129.73,129.69,26.62729138]
[1744662456274,80.8,129.73,129.69,26.62729138]
[1744662456444,115.13579138,129.73,129.69,26.62729138]
[1744662456766,88.5085,129.73,129.69,26.62729138]
[1744662457548,19.1879,129.74,129.7,26.62729138]
[1744662458267,19.1879,129.74,129.69,7.7106]
[1744662458450,45.81519138,129.74,129.69,34.33789138]
[1744662458655,45.81519138,129.74,129.7,26.62729138]
[1744662460173,11.48,129.74,129.71,26.62729138]
[1744662460564,11.48,129.74,129.72,26.62729138]
[1744662460764,7.7067,129.76,129.7,7.7098]
[1744662461076,7.7067,129.76,129.72,26.62729138]
[1744662461950,34.33399138,129.76,129.71,26.62729138]
[1744662463348,34.33399138,129.76,129.68,1.66476157]
[1744662463349,26.62729138,129.74,129.68,1.66476157]
[1744662463554,7.7067,129.76,129.68,1.5226]
[1744662463555,26.62729138,129.73,129.68,1.5226]
[1744662463773,26.62729138,129.73,129.68,28.14989138]
[1744662464251,26.62729138,129.73,129.69,26.62729138]
[1744662465460,26.62729138,129.7,129.66,7.7122]
[1744662465665,26.62729138,129.71,129.66,34.33949138]
[1744662465869,26.62729138,129.7,129.66,34.33949138]
[1744662466055,26.62729138,129.71,129.66,34.33949138]
[1744662466254,7.7089,129.72,129.62,1.0]
[1744662466255,26.62729138,129.67,129.62,7.7148]
[1744662466980,26.62729138,129.67,129.63,26.62729138]
[1744662467356,34.33919138,129.67,129.63,26.62729138]
[1744662467559,34.33919138,129.67,129.61,16.7315489]
[1744662467857,26.62729138,129.65,129.61,2.6743489]
[1744662468063,107.42729138,129.66,129.61,29.30164028]
[1744662468656,107.42729138,129.66,129.62,26.62729138]
[1744662469050,7.7119,129.67,129.62,26.62729138]
[1744662469051,34.33919138,129.67,129.62,26.62729138]
[1744662469781,7.7119,129.67,129.62,7.7146]
[1744662469983,34.33919138,129.67,129.62,34.34189138]
[1744662470657,34.33919138,129.67,129.62,26.62729138]
[1744662470872,26.62729138,129.66,129.61,10.3895489]
[1744662471177,26.62729138,129.62,129.61,2.6743489]
[1744662471387,38.10729138,129.62,129.61,2.6743489]
[1744662471881,45.82209138,129.62,129.61,2.6743489]
[1744662474180,38.10729138,129.62,129.61,2.6743489]
[1744662475177,45.82209138,129.62,129.61,2.6743489]
[1744662478466,64.89822495,129.62,129.61,2.6743489]
[1744662480490,45.82209138,129.62,129.61,2.6743489]
[1744662483487,19.1948,129.62,129.61,2.6743489]
[1744662483695,45.82209138,129.62,129.61,2.6743489]
[1744662484068,19.1948,129.62,129.61,2.6743489]
[1744662484273,45.82209138,129.62,129.61,2.6743489]
[1744662485570,45.82209138,129.62,129.6,0.03]
[1744662485571,26.0,129.58,129.56,0.03]
[1744662485872,38.14729138,129.57,129.56,0.03]
[1744662486197,38.14729138,129.57,129.5,34.34899138]
[1744662486502,26.62729138,129.56,129.46,19.45256157]
[1744662486698,26.62729138,129.56,129.5,26.62729138]
[1744662486899,26.62729138,129.56,129.55,4.8432623]
[1744662487087,34.34569138,129.56,129.55,4.8432623]
[1744662491174,19.2937,129.58,129.55,4.8432623]
[1744662491175,80.8,129.58,129.55,4.8432623]
[1744662491772,80.8,129.58,129.55,31.47055368]
[1744662491976,11.54,129.61,129.57,26.62729138]
[1744662492195,11.54,129.61,129.58,33.05479138]
[1744662492399,11.54,129.61,129.59,26.62729138]
[1744662493196,11.54,129.61,129.58,40.77159138]
[1744662493388,19.2555,129.61,129.58,6.4275]
[1744662493594,45.88279138,129.61,129.58,6.4275]
[1744662493811,19.2555,129.61,129.58,6.4275]
[1744662494811,19.2555,129.61,129.57,1.5046]
[1744662494812,45.88279138,129.61,129.57,1.5046]
[1744662495044,45.88279138,129.61,129.57,35.84969138]
[1744662495045,19.2555,129.61,129.57,35.84969138]
[1744662495186,19.2555,129.61,129.57,28.13189138]
[1744662495478,19.2555,129.61,129.57,35.84959138]
[1744662495880,45.88279138,129.61,129.57,1.5046]
[1744662496607,19.2555,129.61,129.57,1.5046]
[1744662496811,19.2555,129.61,129.57,35.84969138]
[1744662497613,11.54,129.61,129.57,35.84969138]
[1744662498125,11.54,129.65,129.6,26.62729138]
[1744662498284,11.54,129.65,129.62,26.62729138]
[1744662498621,11.54,129.65,129.57,28.5169]
[1744662498622,34.33999138,129.66,129.61,26.62729138]
[1744662498822,34.33999138,129.66,129.61,34.34259138]
[1744662500218,7.7127,129.66,129.61,34.34259138]
[1744662500518,34.33999138,129.66,129.59,0.14216157]
[1744662500695,34.33999138,129.66,129.61,26.62729138]
[1744662501016,26.62729138,129.65,129.6,26.62729138]
[1744662501520,26.62729138,129.65,129.58,7.7172]
[1744662501817,26.62729138,129.65,129.61,26.62729138]
[1744662502010,34.34059138,129.65,129.61,31.44055368]
[1744662502192,7.7127,129.66,129.62,26.62729138]
[1744662502393,118.96729138,129.67,129.63,26.62729138]
[1744662502394,92.34,129.67,129.63,26.62729138]
[1744662502896,92.34,129.67,129.64,26.62729138]
[1744662503206,80.8,129.67,129.65,26.62729138]
[1744662504413,80.8,129.67,129.65,34.34009138]
[1744662504622,19.2503,129.7,129.66,26.62729138]
[1744662504819,11.54,129.7,129.68,26.62729138]
[1744662505043,26.62729138,129.69,129.65,26.62729138]
[1744662505398,26.62729138,129.69,129.65,34.34019138]
[1744662505620,26.62729138,129.69,129.64,7.7133]
[1744662505924,26.62729138,129.69,129.65,26.62729138]
[1744662506722,45.87739138,129.7,129.66,26.62729138]
[1744662508925,45.87739138,129.7,129.65,26.62729138]
[1744662509227,26.62729138,129.69,129.65,26.62729138]
[1744662510326,26.62729138,129.67,129.63,26.62729138]
[1744662510530,26.62729138,129.66,129.62,26.62729138]
[1744662511724,34.33979138,129.66,129.62,26.62729138]
[1744662512631,7.7125,129.66,129.62,34.34209138]
[1744662513225,34.33929138,129.67,129.63,26.62729138]
[1744662513412,7.712,129.67,129.63,26.62729138]
[1744662513729,7.712,129.67,129.64,26.62729138]
[1744662513917,7.712,129.67,129.63,26.62729138]
[1744662514120,34.33929138,129.67,129.63,26.62729138]
[1744662514322,34.33929138,129.67,129.62,34.34209138]
[1744662514519,34.33929138,129.67,129.63,26.62729138]
[1744662514716,7.712,129.67,129.64,26.62729138]
[1744662515337,7.7116,129.68,129.65,26.62729138]
[1744662515931,26.62729138,129.69,129.65,26.62729138]
[1744662515932,34.33819138,129.69,129.65,26.62729138]
[1744662516637,7.7109,129.69,129.66,26.62729138]
[1744662517114,7.7109,129.69,129.66,28.70369488]
[1744662517836,7.7109,129.69,129.66,2.0764035]
[1744662518214,45.87749138,129.7,129.66,2.0764035]
[1744662519342,19.2502,129.7,129.66,28.70369488]
[1744662519524,11.54,129.7,129.67,26.62729138]
[1744662521242,11.54,129.7,129.68,16.63823848]
[1744662522333,19.2502,129.7,129.66,9.7885035]
[1744662522530,19.2502,129.7,129.67,16.63823848]
[1744662522732,11.54,129.7,129.67,16.63823848]
[1744662523520,24.34803848,129.71,129.67,16.63823848]
[1744662524013,24.34803848,129.71,129.67,24.35003848]
[1744662524333,80.8,129.73,129.7,16.63823848]
[1744662525139,105.14663848,129.73,129.69,16.63823848]
[1744662526011,16.63823848,129.71,129.66,9.7886035]
[1744662526337,107.7791,129.73,129.66,26.42704198]
[1744662526338,16.63823848,129.7,129.66,26.42704198]
[1744662526737,88.5084,129.73,129.68,16.63823848]
[1744662526941,105.14663848,129.73,129.68,16.63823848]
[1744662527844,105.14663848,129.73,129.68,24.34933848]
[1744662529120,97.43823848,129.73,129.69,16.63823848]
[1744662529438,16.63823848,129.73,129.69,16.63823848]
[1744662529829,24.34663848,129.73,129.69,16.63823848]
[1744662530346,16.63823848,129.73,129.69,16.63823848]
[1744662530646,16.63823848,129.71,129.67,24.34983848]
[1744662532348,24.34743848,129.72,129.67,26.42624198]
[1744662532533,16.63823848,129.72,129.68,16.63823848]
[1744662532737,28.05823848,129.74,129.7,16.63823848]
[1744662533646,11.42,129.74,129.71,7.7095]
[1744662534323,11.42,129.74,129.7,24.34803848]
[1744662534528,28.05823848,129.74,129.7,24.34803848]
[1744662534939,35.76593848,129.74,129.7,24.34803848]
[1744662537052,16.63823848,129.71,129.67,2.0764035]
[1744662538045,16.63823848,129.71,129.67,18.71464198]
[1744662538224,24.34733848,129.72,129.67,26.42614198]
[1744662540648,16.63823848,129.71,129.67,26.42614198]
[1744662541550,24.34783848,129.71,129.67,26.42614198]
[1744662542748,16.63823848,129.72,129.67,26.42614198]
[1744662543941,24.34763848,129.72,129.68,16.63823848]
[1744662545047,24.34763848,129.72,129.67,18.71464198]
[1744662545244,7.7085,129.73,129.69,16.63823848]
[1744662545453,24.34673848,129.73,129.69,16.63823848]
[1744662545642,24.34673848,129.73,129.68,16.63823848]
[1744662546350,24.34673848,129.73,129.68,24.34933848]
[1744662547556,24.34673848,129.73,129.68,26.42574198]
[1744662550554,16.63823848,129.71,129.68,2.0764035]
[1744662550761,16.63823848,129.69,129.68,2.0764035]
[1744662552462,27.14581119,129.69,129.68,2.0764035]
[1744662552941,38.26581119,129.69,129.68,2.0764035]
[1744662559442,21.62757271,129.69,129.68,2.0764035]
[1744662559755,38.26581119,129.69,129.68,2.0764035]
[1744662565469,35.46883848,129.69,129.68,2.0764035]
[1744662565644,13.91472975,129.69,129.68,18.71464198]
[1744662566354,2.79472975,129.69,129.68,18.71464198]
[1744662566870,7.71,129.71,129.68,18.71464198]
[1744662567051,7.71,129.71,129.68,2.0764035]
[1744662567250,7.71,129.71,129.68,18.71464198]
[1744662567452,27.75823848,129.73,129.69,16.63823848]
[1744662567649,11.12,129.73,129.7,16.63823848]
[1744662567951,2.79463981,129.72,129.71,16.63823848]
[1744662568765,0.063,129.75,129.71,16.63823848]
[1744662569071,0.063,129.75,129.74,16.63823848]
[1744662569748,0.063,129.75,129.74,24.34593848]
[1744662570279,0.063,129.75,129.73,7.708]
[1744662570450,0.063,129.75,129.74,16.63823848]
[1744662571561,0.063,129.75,129.73,16.63823848]
[1744662574573,0.063,129.75,129.72,24.58883848]
[1744662574956,0.063,129.75,129.72,7.9506]
[1744662575270,0.063,129.75,129.72,24.58883848]
[1744662575660,0.063,129.75,129.73,16.63823848]
[1744662576873,0.063,129.75,129.72,16.63823848]
[1744662577059,0.063,129.75,129.71,7.7092]
[1744662577262,16.63823848,129.74,129.7,24.34823848]
[1744662577772,16.70123848,129.75,129.7,26.42464198]
[1744662578466,24.40843848,129.75,129.7,26.42464198]
[1744662578786,24.40843848,129.75,129.71,16.63823848]
[1744662579773,24.40843848,129.75,129.71,24.34743848]
[1744662580093,0.063,129.75,129.72,16.63823848]
[1744662581077,0.063,129.75,129.73,16.63823848]
[1744662582156,0.063,129.75,129.72,24.34713848]
[1744662583371,0.063,129.75,129.73,16.63823848]
[1744662584863,0.063,129.75,129.74,16.63823848]
[1744662585377,0.063,129.75,129.74,24.34593848]
[1744662586175,0.063,129.75,129.74,24.48810005]
[1744662586474,0.063,129.75,129.74,26.49708476]
[1744662589167,0.0001,129.75,129.74,45.14673362]
[1744662590068,0.063,129.78,129.76,0.42648471]
[1744662590257,0.063,129.78,129.77,16.78040005]
[1744662591277,0.063,129.78,129.77,24.91278476]
[1744662592877,0.063,129.78,129.77,26.42054198]
[1744662596771,0.063,129.78,129.77,26.56270355]
[1744662597268,0.063,129.78,129.77,26.98918826]
[1744662598367,0.063,129.78,129.77,26.56270355]
[1744662598582,0.063,129.78,129.77,2.0764035]
[1744662600370,0.063,129.78,129.77,26.98918826]
[1744662600564,0.063,129.78,129.77,26.56270355]
[1744662601075,0.063,129.78,129.77,2.0764035]
[1744662602281,0.063,129.78,129.77,26.42054198]
[1744662602457,0.063,129.78,129.77,26.56270355]
[1744662604286,0.063,129.78,129.77,26.98918826]
[1744662605967,0.063,129.78,129.77,45.63883712]
[1744662607291,0.063,129.78,129.77,39.62834057]
[1744662614172,0.063,129.78,129.77,9.7823035]
[1744662614374,0.063,129.78,129.77,2.0764035]
[1744662614580,10.69074193,129.78,129.77,2.0764035]
[1744662615384,0.063,129.78,129.77,2.0764035]
[1744662615989,0.063,129.78,129.77,20.41004543]
[1744662617090,0.063,129.78,129.77,9.7823035]
[1744662618184,0.063,129.78,129.77,20.97869171]
[1744662619192,0.063,129.78,129.77,39.62834057]
[1744662619699,0.063,129.78,129.77,82.13930829]
[1744662620100,0.063,129.78,129.77,39.62834057]
[1744662623800,0.063,129.78,129.77,20.97869171]
[1744662624499,0.063,129.78,129.77,2.0764035]
[1744662624796,10.69074193,129.78,129.77,2.0764035]
[1744662625678,33.7683,129.78,129.77,2.0764035]
[1744662625977,44.39604193,129.78,129.77,2.0764035]
[1744662627202,50.39125244,129.78,129.77,2.0764035]
[1744662629296,0.063,129.78,129.77,26.40525594]
[1744662629481,0.063,129.78,129.77,26.97390222]
[1744662630409,0.063,129.78,129.77,45.62355108]
[1744662631303,0.063,129.78,129.77,26.97390222]
[1744662634122,0.063,129.78,129.77,2.0764035]
[1744662634419,16.68595244,129.78,129.77,2.0764035]
[1744662635418,24.39125244,129.78,129.77,2.0764035]
[1744662636109,47.54230488,129.78,129.77,2.0764035]
[1744662636310,30.91935244,129.78,129.77,2.0764035]
[1744662636512,33.71674102,129.78,129.77,2.0764035]
[1744662637422,50.33969346,129.78,129.77,2.0764035]
[1744662639706,10.56568858,129.78,129.77,2.0764035]
[1744662640026,42.68595244,129.78,129.77,2.0764035]
[1744662640502,0.063,129.78,129.77,2.0764035]
[1744662642012,26.063,129.78,129.77,2.0764035]
[1744662643422,0.063,129.78,129.77,2.0764035]
[1744662643599,0.063,129.78,129.77,26.54741751]
[1744662644219,0.063,129.78,129.77,26.97390222]
[1744662647221,0.063,129.78,129.77,10.35094978]
[1744662647417,0.063,129.78,129.77,26.97390222]
[1744662649601,0.063,129.78,129.77,45.62355108]
[1744662650730,0.063,129.78,129.77,26.97390222]
[1744662650908,0.063,129.78,129.77,9.92446507]
[1744662651102,0.063,129.78,129.77,26.54741751]
[1744662654509,0.063,129.78,129.77,26.97390222]
[1744662658525,0.063,129.78,129.77,45.62355108]
[1744662660120,0.063,129.78,129.77,26.97390222]
[1744662662747,0.063,129.78,129.77,45.62355108]
[1744662663028,0.063,129.78,129.77,62.24650352]
[1744662663235,0.0001,129.78,129.77,62.24650352]
[1744662663410,0.063,129.8,129.79,0.56864628]
[1744662663609,0.063,129.8,129.79,18.85109872]
[1744662663814,0.063,129.8,129.79,44.85109872]
[1744662664048,0.063,129.8,129.79,28.22814628]
[1744662664219,0.063,129.8,129.79,44.85109872]
[1744662664426,0.063,129.8,129.78,0.14216157]
[1744662664629,0.063,129.8,129.78,16.76511401]
[1744662664926,0.063,129.8,129.78,24.46981401]
[1744662665531,0.063,129.8,129.77,2.0764035]
[1744662665722,16.62295244,129.78,129.77,2.0764035]
[1744662668242,24.32825244,129.78,129.77,2.0764035]
[1744662668449,40.95120488,129.78,129.77,2.0764035]
[1744662668620,43.74842586,129.78,129.77,2.0764035]
[1744662670743,68.83635943,129.78,129.77,2.0764035]
[1744662672450,68.83635943,129.78,129.69,0.03]
[1744662672451,33.7077,129.74,129.69,0.03]
[1744662672748,16.62295244,129.71,129.69,0.03]
[1744662673428,16.62295244,129.73,129.69,7.7406]
[1744662673632,55.01525244,129.74,129.69,24.36355244]
[1744662674947,55.01525244,129.74,129.7,16.62295244]
[1744662675847,16.62295244,129.72,129.69,0.03]
[1744662676347,42.62295244,129.7,129.69,0.03]
[1744662676530,16.62295244,129.71,129.69,0.03]
[1744662677137,16.62295244,129.72,129.69,0.03]
[1744662677345,91.64,129.74,129.71,16.62295244]
[1744662677526,10.84,129.74,129.71,16.62295244]
[1744662677923,16.62295244,129.72,129.69,0.03]
[1744662678151,16.62295244,129.7,129.69,0.03]
[1744662678332,42.62295244,129.7,129.69,0.03]
[1744662681132,50.33305244,129.7,129.69,0.03]
[1744662681541,42.62295244,129.7,129.69,0.03]
[1744662682047,16.62295244,129.7,129.69,0.03]
[1744662685133,30.1093,129.74,129.69,0.03]
[1744662685134,16.62295244,129.73,129.69,0.03]
[1744662685849,16.62295244,129.7,129.69,0.03]
[1744662686047,42.62295244,129.7,129.69,0.03]
[1744662687757,26.0,129.7,129.69,0.03]
[1744662688131,50.33305244,129.7,129.69,0.03]
[1744662690756,26.0,129.66,129.63,0.03]
[1744662690941,16.62295244,129.64,129.63,0.03]
[1744662691543,24.33655244,129.64,129.63,0.03]
[1744662692573,16.62295244,129.64,129.63,0.03]
[1744662693742,16.62295244,129.65,129.63,0.03]
[1744662694437,16.62295244,129.64,129.63,0.03]
[1744662695657,24.33655244,129.64,129.63,0.03]
[1744662697951,16.62295244,129.64,129.63,0.03]
[1744662698163,16.62295244,129.65,129.63,0.03]
[1744662698748,16.62295244,129.64,129.63,0.03]
[1744662700082,16.62295244,129.65,129.63,0.03]
[1744662700381,53.48295244,129.67,129.63,0.03]
[1744662700579,53.48295244,129.67,129.63,16.65295244]
[1744662701465,16.62295244,129.69,129.65,16.62295244]
[1744662701669,108.28295244,129.71,129.66,16.62295244]
[1744662701880,91.66,129.71,129.66,16.62295244]
[1744662702080,27.48295244,129.73,129.69,24.33355244]
[1744662702372,10.86,129.73,129.7,16.62295244]
[1744662702573,16.62295244,129.74,129.69,24.33355244]
[1744662702780,16.62295244,129.76,129.72,16.62295244]
[1744662702983,24.32955244,129.76,129.72,16.62295244]
[1744662703276,24.32955244,129.76,129.71,16.62295244]
[1744662703579,16.62295244,129.74,129.69,24.33355244]
[1744662704281,16.62295244,129.74,129.69,16.62295244]
[1744662704778,16.62295244,129.74,129.69,24.33345244]
[1744662705082,7.7068,129.76,129.71,16.62295244]
[1744662705250,16.62295244,129.75,129.71,16.62295244]
[1744662706078,16.62295244,129.76,129.71,16.62295244]
[1744662706276,108.28295244,129.77,129.72,16.62295244]
[1744662706782,115.98885244,129.77,129.72,16.62295244]
[1744662707189,115.98885244,129.77,129.73,16.62295244]
[1744662707386,91.66,129.77,129.73,16.62295244]
[1744662707591,10.86,129.77,129.74,16.62295244]
[1744662707788,24.32785244,129.79,129.75,16.62295244]
[1744662708261,24.32785244,129.79,129.74,16.62295244]
[1744662708963,7.7049,129.79,129.74,16.62295244]
[1744662709382,24.32785244,129.79,129.74,16.62295244]
[1744662709678,16.62295244,129.76,129.72,16.62295244]
[1744662709878,16.62295244,129.77,129.72,16.62295244]
[1744662710278,7.7049,129.79,129.73,16.62295244]
[1744662710481,16.62295244,129.77,129.73,16.62295244]
[1744662710789,16.62295244,129.77,129.72,16.62295244]
[1744662711171,16.62295244,129.77,129.73,16.62295244]
[1744662711372,24.32835244,129.78,129.73,24.33095244]
[1744662712093,16.62295244,129.77,129.73,24.33095244]
[1744662713408,16.62295244,129.76,129.71,16.62295244]
[1744662713615,16.62295244,129.74,129.7,16.62295244]
[1744662713788,16.62295244,129.74,129.69,16.62295244]
[1744662713993,16.62295244,129.73,129.68,26.23047558]
[1744662714201,16.62295244,129.74,129.69,16.62295244]
[1744662714491,16.62295244,129.74,129.7,16.62295244]
[1744662714700,16.62295244,129.75,129.7,16.62295244]
[1744662715111,16.62295244,129.74,129.7,16.62295244]
[1744662715716,24.33075244,129.74,129.7,16.62295244]
[1744662716430,16.62295244,129.73,129.68,25.94615244]
[1744662716615,16.62295244,129.72,129.68,1.6122]
[1744662716795,16.62295244,129.71,129.67,30.73575244]
[1744662717120,16.62295244,129.7,129.66,7.7122]
[1744662717410,16.62295244,129.69,129.65,25.91775244]
[1744662717805,16.62295244,129.69,129.65,1.5819]
[1744662717806,16.62295244,129.68,129.65,1.5819]
[1744662718114,26.0,129.64,129.63,0.03]
[1744662718307,42.62295244,129.64,129.63,0.03]
[1744662721306,52.6561503,129.64,129.63,0.03]
[1744662721507,82.58842314,129.68,129.63,0.03]
[1744662721508,26.6561503,129.67,129.63,0.03]
[1744662721710,26.6561503,129.66,129.63,0.03]
[1744662721911,52.6561503,129.64,129.63,0.03]
[1744662723427,60.3697503,129.64,129.63,0.03]
[1744662725431,90.30588387,129.64,129.63,0.03]
[1744662725727,91.94898387,129.64,129.63,0.03]
[1744662725924,72.8728503,129.64,129.63,0.03]
[1744662726320,36.86,129.64,129.63,0.03]
[1744662726819,63.5161503,129.64,129.63,0.03]
[1744662727145,71.2297503,129.64,129.63,0.03]
[1744662729824,37.5161503,129.64,129.63,0.03]
[1744662730030,10.86,129.64,129.63,0.03]
[1744662730330,37.5161503,129.64,129.63,0.03]
[1744662731132,45.2297503,129.64,129.63,0.03]
[1744662732821,37.5161503,129.64,129.63,0.03]
[1744662733031,10.86,129.64,129.63,0.03]
[1744662733223,37.5161503,129.64,129.63,0.03]
[1744662733434,45.2297503,129.64,129.63,0.03]
[1744662734225,37.5161503,129.64,129.63,0.03]
[1744662735111,115.1694503,129.65,129.63,0.03]
[1744662735519,26.6561503,129.68,129.63,0.03]
[1744662735732,10.86,129.7,129.67,26.6561503]
[1744662735923,80.8,129.74,129.69,26.6561503]
[1744662735924,7.7085,129.73,129.69,26.6561503]